Cogmind - Beta 13 @@@ ROGUE MODE // 2024.04.03 @ 17:11:58 Player: NikedNOGsing_in_can't Result: Destroyed by D-53 Grenadier with Mini Grenade Launcher Performance ------------- Evolutions (0) 0 Regions Visited (2) 400 Robots Destroyed (31) 155 Value Destroyed (290) 290 Prototype IDs (0) 0 Alien Tech Used (0) 0 Bonus (0) 0 TOTAL SCORE: 845 Bonus ------- None Cogmind --------- Core Integrity 0/250 Matter 251/300 Energy 125/125 System Corruption 2% Temperature Cool (0) Movement Treading (160) Location -10/Mines Parts ------- > --- POWER (1) -------- Light Ion Engine (fused) > --- PROPULSION (2) --- Light Treads Light Treads > --- UTILITY (2) ------ Heat Sink Sensor Array > --- WEAPON (2) ------- Medium Laser Rocket Launcher > --- INVENTORY (5) ---- Small Storage Unit Improved Terrain Scanner Light Assault Rifle Datajack Peak State ------------ > --- POWER ------------ Light Ion Engine > --- PROPULSION ------- Light Treads Light Treads > --- UTILITY ---------- Small Storage Unit Improved Terrain Scanner > --- WEAPON ----------- Medium Laser Medium Laser > --- INVENTORY -------- (None) [Rating: 9] Favorites ----------- Power Light Ion Engine Engine Light Ion Engine Propulsion Light Treads Treads Light Treads Utility Heat Sink Device Heat Sink Storage Small Storage Unit Weapon Medium Laser Energy Gun Medium Laser Ballistic Gun Light Assault Rifle Launcher Rocket Launcher Special Weapon Mining Laser Special Melee Weapon Datajack Build | -11 -10 -10 ------- Run | Yrd Mat Min Slots Evolved . | . . . Power . | . . . Propulsion . | . . . Utility . | . . . Weapon . | . . . Parts Attached 25 | 7 14 4 Power 2 | 1 1 . Engine 2 | 1 1 . Core . | . . . Reactor . | . . . Propulsion 5 | 2 3 . Treads 5 | 2 3 . Leg . | . . . Wheel . | . . . Hover . | . . . Flight . | . . . Utility 4 | 2 2 . Device 3 | 1 2 . Storage 1 | 1 . . Processor . | . . . Hackware . | . . . Protection . | . . . Artifact . | . . . Weapon 14 | 2 8 4 Energy Gun 5 | 2 2 1 Energy Cannon . | . . . Ballistic Gun 5 | . 4 1 Ballistic Cannon . | . . . Launcher 1 | . . 1 Special Weapon 1 | . 1 . Impact Weapon . | . . . Slashing Weapon . | . . . Piercing Weapon . | . . . Special Melee Weapon 2 | . 1 1 Unidentified Prototypes . | . . . Parts Lost 1 | . 1 . Power . | . . . Propulsion . | . . . Utility . | . . . Weapon 1 | . 1 . Highest Loss Streak 1 | . 1 . To Critical Strikes . | . . . Average Slot Usage (%) 99 | . 99 100 Engine 14 | . 14 14 Treads 27 | . 27 28 Device 22 | . 21 28 Storage 5 | . 7 . Energy Gun 14 | . 14 12 Ballistic Gun 11 | . 11 10 Naked Turns . | . . . Heaviest Build 13 | 13 13 11 Greatest Support 40 | 40 40 40 Greatest Overweight (x) 3 | 3 . . Average Overweight (x) . | . . . Largest Inventory Capacity 8 | 8 8 5 Average Capacity 6 | 7 6 5 Most Carried 4 | 2 4 4 Average Carried 2 | . 2 3 Final Capacity 8 | 8 5 5 Final Carried 4 | 1 3 4 Class Distribution -------------------- 96% | Mutant 3% | Scavenger-Mutant Dominant Class ---------------- Mutant | -10/Materials Mutant | -10/Mines Resources | -11 -10 -10 ----------- Run | Yrd Mat Min Matter Collected 534 | 270 240 24 Remotely . | . . . Salvage Created 821 | 157 624 40 Parts 62 | 18 41 3 Haulers Intercepted 1 | . 1 . Recyclers Shooed 3 | . 1 2 Parts Field Recycled . | . . . Retrieved Matter . | . . . Parts Self-Destructed . | . . . Prevented . | . . . Kills | -11 -10 -10 ------- Run | Yrd Mat Min Combat Hostiles Destroyed 12 | . 12 . Guns 12 | . 12 . Classes Destroyed 8 | 3 5 . Worker 5 | 2 3 . Builder 3 | . 3 . Tunneler 6 | 3 1 2 Hauler 1 | . 1 . Recycler 3 | 1 2 . Operator 1 | . 1 . Swarmer 9 | . 9 . Grunt 3 | . 3 . Best Kill Streak 6 | 3 6 1 Combat Bots Only 3 | . 3 . Max Kills in Single Turn 1 | 1 1 1 Gunslinging . | . . . Exploded . | . . . Melee . | . . . Uniques/NPCs Destroyed . | . . . Combat | -11 -10 -10 -------- Run | Yrd Mat Min Hostile Shots Fired 53 | . 45 8 Missed 16 | . 13 3 Damage Taken 796 | . 587 209 Core 264 | . 198 66 Absorbed by Shields . | . . . Core Remaining (%) 100 | 100 . . Volleys Fired 149 | 30 99 20 Largest 2 | 2 2 2 Hottest 150 | 100 150 83 Shots Fired 258 | 40 187 31 Gun 244 | 40 175 29 Cannon . | . . . Launcher 2 | . . 2 Special 12 | . 12 . Kinetic 73 | . 62 11 Thermal 183 | 40 125 18 Explosive 2 | . . 2 Electromagnetic . | . . . Robot Hit Streak 15 | 5 15 5 Robot Miss Streak 4 | 3 4 2 Penetration Max . | . . . Secondary Targets . | . . . Shots Hit Robots 138 | 23 97 18 Core Hits 49 | 7 37 5 Critical Kills . | . . . Critical Parts Destroyed . | . . . Critical Strikes 6 | 3 2 1 Burn 6 | 3 2 1 Melee Attacks 5 | . 4 1 Impact . | . . . Slashing . | . . . Piercing . | . . . Sneak Attacks 5 | . 4 1 Combat Hostiles . | . . . Follow-up Attacks . | . . . Damage Inflicted 1483 | 284 1025 174 Guns 1459 | 284 1001 174 Cannons . | . . . Explosions . | . . . Melee . | . . . Ramming . | . . . Kinetic 326 | . 275 51 Thermal 1157 | 284 750 123 Explosive . | . . . Electromagnetic . | . . . Impact . | . . . Slashing . | . . . Piercing . | . . . Highest Corruption 2 | . 2 2 Average Corruption 1 | . 1 2 Corruption Purged . | . . . Corruption Blocked . | . . . Effects 25 | . 21 4 Message Errors 7 | . 5 2 Matter Fused 6 | . 6 . Heat Flow Errors 3 | . 3 . Energy Discharges 3 | . 3 . Parts Fused 1 | . . 1 Data Loss (minor) 1 | . 1 . Data Loss (major) 1 | . . 1 Misfires 1 | . 1 . Alerts 1 | . 1 . Weapon Failures 1 | . 1 . Overload Shots . | . . . Overflow Damage . | . . . Projectiles . | . . . Explosions . | . . . Melee . | . . . Knockbacks . | . . . Impact . | . . . Kinetic . | . . . Secondary . | . . . Self-Inflicted Damage 89 | . . 89 Shots 2 | . . 2 Rammed . | . . . Targets Rammed . | . . . Kicked . | . . . Crushed . | . . . Highest Temperature 273 | 273 272 20 Average Temperature 66 | 85 63 9 Received Heat Transfer 86 | . 66 20 Effects 2 | 2 . . Interference 2 | 2 . . Siege Activations . | . . . Robots Corrupted . | . . . Combat Hostiles . | . . . Parts Fried . | . . . Impact Corruptions . | . . . Robots Melted . | . . . Combat Hostiles . | . . . Parts Melted 6 | 1 5 . Heat Transferred 3861 | 1073 2344 444 Parts Sabotaged . | . . . Parts Stolen . | . . . Parts Stripped . | . . . Power Chain Reactions . | . . . Alert | -11 -10 -10 ------- Run | Yrd Mat Min Peak Influence 189 | 30 189 40 Initial 19 | . 19 19 Average 46 | 17 55 20 Maximum Alert Level . | . . . Low Security (%) 100 | 100 100 100 Level 1 . | . . . Level 2 . | . . . Level 3 . | . . . Level 4 . | . . . Level 5 . | . . . High Security . | . . . Max Security . | . . . Squads Dispatched 1 | . 1 . Investigation . | . . . Extermination . | . . . Reinforcement 1 | . 1 . Assault . | . . . Garrison . | . . . Intercept . | . . . Searches Triggered . | . . . Construction Impeded . | . . . Haulers Reinforced . | . . . Active Scanning Responses . | . . . Cargo Convoy Interrupts . | . . . Stealth | -11 -10 -10 --------- Run | Yrd Mat Min Distress Signals 1 | . 1 . Communications Jammed . | . . . Distress Signals . | . . . Times Spotted 32 | . 21 11 Peak Tracking Total 21 | . 4 21 Tactical Retreats 1 | . 1 . Traps | -11 -10 -10 ------- Run | Yrd Mat Min Traps Triggered 4 | . 4 . Indirectly . | . . . Trap Hack Attempts . | . . . Triggered . | . . . Disarmed . | . . . Reprogrammed . | . . . Reused . | . . . Traps Extracted . | . . . Installed . | . . . Triggered . | . . . Machines | -11 -10 -10 ---------- Run | Yrd Mat Min Machines Disabled . | . . . Max in Single Turn . | . . . Machines Repaired . | . . . Machines Dismantled . | . . . Machines Sabotaged . | . . . Overloaded Fab Kills . | . . . Hacking | -11 -10 -10 --------- Run | Yrd Mat Min Machines Accessed . | . . . Terminals . | . . . Fabricators . | . . . Repair Stations . | . . . Recycling Units . | . . . Scanalyzers . | . . . Garrison Access . | . . . Total Hacks . | . . . Successful . | . . . Failed . | . . . Catastrophic . | . . . Database Lockouts . | . . . Manual . | . . . Terminals . | . . . Fabricators . | . . . Repair Stations . | . . . Recycling Units . | . . . Scanalyzers . | . . . Garrison Access . | . . . Terminal Hacks . | . . . Fabricator Hacks . | . . . Repair Station Hacks . | . . . Recycling Unit Hacks . | . . . Scanalyzer . | . . . Garrison Access Hacks . | . . . Unauthorized Hacks . | . . . Terminals . | . . . Fabricators . | . . . Repair Stations . | . . . Recycling Units . | . . . Scanalyzers . | . . . Garrison Access . | . . . Data Cores Recovered . | . . . Used . | . . . Hacking Detections . | . . . Full Trace Events . | . . . Feedback Events . | . . . Feedback Blocked . | . . . Robot Schematics Acquired . | . . . Robots Built . | . . . Authchips . | . . . Time . | . . . Total Robot Build Rating . | . . . Part Schematics Acquired . | . . . Parts Built . | . . . Authchips . | . . . Time . | . . . Total Part Build Rating . | . . . Parts Repaired . | . . . Time . | . . . Parts Recycled . | . . . Recycled Matter . | . . . Retrieved Matter . | . . . Retrieved Components . | . . . Parts Scanalyzed . | . . . Part Schematics Acquired . | . . . Parts Damaged . | . . . Bothacking | -11 -10 -10 ------------ Run | Yrd Mat Min Used RIF Installer . | . . . Robots Hacked 3 | . 2 1 Non-combat 3 | . 2 1 Combat . | . . . Robot Hacks Applied 4 | . 3 1 parse_system 2 | . 1 1 no_distress 2 | . 2 . Relay Couplers Released . | . . . Fabnet Peak Effective % . | . . . Robots Rewired . | . . . Allies Hacked . | . . . Hacks Repelled . | . . . Allies | -11 -10 -10 -------- Run | Yrd Mat Min Total Allies . | . . . Largest Group . | . . . Highest-Rated Group . | . . . Highest-Rated Ally . | . . . Total Orders . | . . . Ally Attacks . | . . . Total Damage . | . . . Kills . | . . . Allies Corrupted . | . . . Allies Melted . | . . . Intel | -11 -10 -10 ------- Run | Yrd Mat Min Robot Analysis Total . | . . . Derelict Logs Recovered 1 | . . 1 Drone Launches . | . . . Drone Recoveries . | . . . Exploration | -11 -10 -10 ------------- Run | Yrd Mat Min Turns Passed 2670 | 239 1985 446 Spaces Moved 1187 | 93 851 243 Core 14 | 14 . . Treads 1173 | 79 851 243 Legs . | . . . Wheels . | . . . Hover . | . . . Flight . | . . . Fastest Speed 50 | 50 160 160 Average Speed 160 | 160 160 160 Slowest Speed 200 | 200 160 160 Overloaded Moves . | . . . Propulsion Burnouts . | . . . Robots Hopped . | . . . Cave-ins Triggered 1 | . 1 . Exploration Rate (%) 48 | 6 81 58 Regions Visited 2 Branch Regions 1 Pre-discovered Areas . | . . . Known Exits Taken . | . . . Unknown Exits Taken 2 | 1 1 . Scrap Searched . | . . . Spaces Dug 18 | . 8 10 Terrain Destroyed 32 | . 9 23 Melee . | . . . Projectile 9 | . 9 . AOE 23 | . . 23 Terrain Rammed . | . . . Walls Destroyed . | . . . Machines Disabled . | . . . Actions | -11 -10 -10 --------- Run | Yrd Mat Min Total 1682 | 143 1270 269 Wait 296 | 6 290 . Move 1185 | 92 850 243 Hop . | . . . Pick Up 18 | 8 9 1 Fast Attach . | . . . Attach 10 | 7 3 . Detach . | . . . Swap 15 | . 11 4 Drop 4 | . 4 . Fire 149 | 30 99 20 Melee 5 | . 4 1 Ram . | . . . Kick . | . . . Crush . | . . . Escape Stasis . | . . . Rewire . | . . . Trap . | . . . Miscellaneous . | . . . Route ------- -11/Scrapyard -10/Materials (discovered 3 exits: [*Mat x2] / [*Min]) -10/Mines (discovered 2 exits: [*Mat x2]) History --------- Turn | Location | Event 35 | -11/Scrapyard | Discovered new exit (range 15) 240 | -11/Scrapyard | Entered Materials 308 | -10/Materials | Build established: Mutant 998 | -10/Materials | Discovered new exit (range 15) 1110 | -10/Materials | Discovered new exit (range 13) 1508 | -10/Materials | Crushed by falling debris 1508 | -10/Materials | Core integrity fell below 50% 2047 | -10/Materials | Discovered new exit (range 13) 2225 | -10/Materials | Entered Mines 2348 | -10/Mines | Discovered new exit (range 15) 2475 | -10/Mines | Discovered new exit (range 14) 2507 | -10/Mines | Learned 2 Materials zone layouts 2554 | -10/Mines | Received a Rocket Launcher from a helpful Derelict 2658 | -10/Mines | Assembled infested the area 2664 | -10/Mines | Core integrity fell below 20% 2671 | -10/Mines | Destroyed by D-53 Grenadier with Mini Grenade Launcher Last Messages --------------- Done. Need a big hole in the wall? Done." 02553_ BW-F96(g): "Need a small hole in the wall? Leave that to the mining laser wimps, I say!" 02554_ BW-F96(g): "Would you like a rocket launcher? I know I would if I were you, so I'm going to lend you mine." 02554_ BW-F96(g) slips back into the shadows. 02558_ Acquired Rocket Launcher. 02584_ T-07 Excavator destroyed. 02600_ System corrupted: Lgt. Ion Engine fused. 02658_ ALERT: Infestation in the mines, dispatching Demolisher response squad. 02663_ C-30 ARC bursts open, deploying its payload. 02663_ D-53 Grenadier unfolds itself. [Achievement: Hunted] 02668_ The unstable cave ceiling collapses. 02671_ as-58352 destroyed. 02671_ as-97085 destroyed. Map ----- +----------------------------------------------------+ | ???????????????????????????????????? | | ???????????????????????????????????? | | ???????????????????????????????????? | | ???????????????????????????????????? | | ???????????????????????????????????? | | ???????????????????????????????????? | | ???????????????????????????????????? | | ???????????????????????????????????? | | ???????????????????????????????????? | | ???????????????????????????????????? | | ???????????????????????????????????? | | ???????????????????????? ??????????? | | ???????????????????????? ??????????? | | ???????????????????????? ??????????? | | ??????????????????????## ??????????? | | ??????????????????????# ??????????? | | ??????????????????????# ??????????? | | ??????????????????????# ???????????? | | ?????????????????????## ???????????? | | ?????????????????????# ????????????? | | ?????????????????????#a?#??????????? | | ?????????????????????# %#?????#????? | | ?????????????????????# a#####$?????? | | ????????????????????##aa ??????? | | ????????????????????# #???????? | | #???????????????????# % @ #???????? | | ####??????#####?????##d #???????? | | ? #?????## ##????# #???????? | | ?# #?????# ###??# d #???????? | | ## ####### ##?# ###???????? | | ## #?# ##?????????? | | #?# #??????????? | | #### ##### ### ##??????????? | | #??# #???# ## #???????????? | | ???# #???# # #???????????? | | ???# #???## #####?###???? | | ???# ???## % ## ##??? | | ??? ## ##?? | | ??# #?? | | ??# ## #?? | | ??## #### ##?? | | ???## #??# ## ##??? | | ????## ## < #?## ##?####???? | | ?????### #?## #??# ##?????????? | | ???????###???## ##??# #??????????? | | ??????????????######### #??????????? | | ??????????????????# #??????????? | | ??????????????????# #??????????? | | ????###???????????# #####??????????? | | #### ##??????##### #??????????????? | +----------------------------------------------------+ Best States ------------- Heat Dissipation 35 Energy Generation 10 Energy Capacity 125 Matter Stores 300 Matter Capacity 300 Sight Range 16 Robot Scan Range 14 Terrain Scan Range 16 Terrain Scan Density 10 Evasion (%) 40 Recoil Reduction 2 Item Schematics ----------------- None Robot Schematics ------------------ None Fabricated ------------ Nothing Alien Tech Used ----------------- None Achievements -------------- Hunted Unlikely Earthworm Challenges ------------ None Game ------ Seed ContainmentAutogunEngine Manual? 0 Play Time 00:20:46 Cumulative 7.2 hours Start 2024.04.03 @ 16:51:30 End 2024.04.03 @ 17:11:58 Sessions 1 Manual Loads 0 Difficulty Rogue Special Mode None Game No. 4 Rogue 4 Adventurer 0 Explorer 0 Win Type - Total 0 Types 0/0/0/0/0/0/0/0/0 Lore% 2 Gallery% 12 Achievement% 12 Wizard Run 0 Options --------- Layout 1 ASCII 0 Keyboard 0 Movement Mouse Keybinds 0 Fullscreen 1 Font 24/Smallcaps Map View 50x35 Zoom Use 0% Tactical HUD 1 Map Filters NONE Filters NONE Steam 1 RUN: e7bb243e-11a5-4e7c-ac17-0feb8e64cd4c